bitfinex/quotes_ETHUSD_20250526
["timestamp","ask_amount","ask_price","bid_price","bid_amount"]
[1748245923294,0.46307034,2578.2,2577.9,8.0]
[1748245923591,0.46307034,2578.2,2577.9,9.34697407]
[1748245924277,4.34150262,2578.4,2577.9,9.34697407]
[1748245924591,3.87853065,2578.3,2577.9,9.34697407]
[1748245926066,0.46307034,2578.4,2577.9,9.10101915]
[1748245926265,4.34139206,2578.5,2578.0,8.0]
[1748245926466,4.34139206,2578.5,2578.0,10.66915191]
[1748245926700,3.87839227,2578.4,2578.0,10.66915191]
[1748245927699,0.360657,2578.3,2578.0,10.66915191]
[1748245928199,3.87839227,2578.4,2578.0,10.66915191]
[1748245929598,3.87823265,2578.5,2578.1,1.6038]
[1748245929890,3.87823265,2578.5,2578.2,8.0]
[1748245930467,3.87812404,2578.6,2578.2,8.0]
[1748245930676,3.87823009,2578.5,2578.2,8.0]
[1748245930873,12.70899646,2578.7,2578.3,3.875]
[1748245930874,3.87813833,2578.6,2578.3,3.875]
[1748245931077,0.46307034,2578.7,2578.5,1.6038]
[1748245931964,0.3601411,2578.8,2578.5,1.6038]
[1748245934262,4.23794786,2578.8,2578.5,1.6038]
[1748245935011,3.87780676,2578.8,2578.5,1.6038]
[1748245935307,0.4101411,2578.9,2578.6,8.0]
[1748245936301,0.05,2578.9,2578.6,8.0]
[1748245936877,0.05,2578.9,2578.8,8.0]
[1748245937081,0.05,2578.9,2578.8,13.47220342]
[1748245937473,3.92762224,2578.9,2578.8,13.47220342]
[1748245937780,0.05,2578.9,2578.8,13.47220342]
[1748245941336,7.25142224,2578.9,2578.8,13.47220342]
[1748245941486,1.75,2578.9,2578.8,13.47220342]
[1748245941689,5.62762224,2578.9,2578.8,13.47220342]
[1748245942708,3.92762224,2578.9,2578.8,13.47220342]
[1748245944688,4.28776334,2578.9,2578.8,13.47220342]
[1748245945715,4.28776334,2578.9,2578.8,14.98560342]
[1748245946489,3.92762224,2578.9,2578.8,14.98560342]
[1748245947114,3.92762224,2578.9,2578.8,13.47220342]
[1748245947612,4.28776334,2578.9,2578.8,13.47220342]
[1748245947815,5.86286334,2578.9,2578.8,13.47220342]
[1748245948911,6.32593368,2578.9,2578.8,13.47220342]
[1748245949102,6.32593368,2578.9,2578.8,5.47220342]
[1748245950104,5.86286334,2578.9,2578.8,5.47220342]
[1748245953793,4.28776334,2578.9,2578.8,5.47220342]
[1748245957133,5.98776334,2578.9,2578.8,5.47220342]
[1748245959440,5.98776334,2578.9,2578.8,13.47220342]
[1748245964922,6.60503357,2578.9,2578.8,13.47220342]
[1748245966860,2.72741133,2578.9,2578.8,15.01120342]
[1748245967440,6.60503357,2578.9,2578.8,15.01120342]
[1748245967849,5.98776334,2578.9,2578.8,15.01120342]
[1748245969431,2.1101411,2578.9,2578.8,13.47220342]
[1748245971376,2.72741133,2578.9,2578.8,13.47220342]
[1748245971977,6.60503357,2578.9,2578.8,13.47220342]
[1748245972650,2.72741133,2578.9,2578.8,13.47220342]
[1748245973173,6.60503357,2578.9,2578.8,13.47220342]
[1748245973539,2.72741133,2578.9,2578.8,13.47220342]
[1748245974978,5.98776334,2578.9,2578.8,13.47220342]
[1748245976451,6.44955763,2578.9,2578.8,5.47220342]
[1748245976856,6.44955763,2578.9,2578.8,13.47220342]
[1748245977373,6.60503357,2578.9,2578.8,13.47220342]
[1748245987116,2.72741133,2578.9,2578.8,15.12370342]
[1748245987610,6.60503357,2578.9,2578.8,15.12370342]
[1748245988083,5.98776334,2578.9,2578.8,15.12370342]
[1748245989808,5.98776334,2578.9,2578.8,13.47220342]
[1748245992294,6.60503357,2578.9,2578.8,13.47220342]
[1748245999620,5.98776334,2578.9,2578.8,13.47220342]
[1748246002631,7.53762391,2578.9,2578.8,13.47220342]
[1748246006759,3.66000167,2578.9,2578.8,13.47220342]
[1748246007052,3.66000167,2578.9,2578.8,15.37335376]
[1748246007335,3.66000167,2578.9,2578.8,19.24635376]
[1748246007512,3.66000167,2578.9,2578.8,20.75545376]
[1748246008035,1.96000167,2578.9,2578.8,24.63322636]
[1748246008820,1.96000167,2578.9,2578.8,20.75545376]
[1748246011078,0.4101411,2578.9,2578.8,20.75545376]
[1748246013538,0.46030832,2579.2,2579.1,8.0]
[1748246013899,4.33747953,2579.2,2579.1,8.0]
[1748246019548,4.33747953,2579.2,2579.1,13.06206232]
[1748246020136,3.87717121,2579.2,2579.1,13.06206232]
[1748246025655,4.23610047,2579.2,2579.1,13.06206232]
[1748246026421,5.86580047,2579.2,2579.1,8.0]
[1748246026616,3.87732154,2579.1,2579.0,8.0]
[1748246026823,3.87732154,2579.1,2579.0,13.06206232]
[1748246027222,4.2362508,2579.1,2579.0,13.06206232]
[1748246029666,4.69655912,2579.1,2579.0,13.06206232]
[1748246030869,4.69655912,2579.1,2579.0,5.06206232]
[1748246031248,3.8777726,2578.8,2578.7,13.06206232]
[1748246031777,3.87765345,2578.9,2578.7,13.06206232]
[1748246031958,0.46030832,2578.8,2578.7,13.06206232]
[1748246032472,0.81923758,2578.8,2578.7,13.06206232]
[1748246033475,0.35892926,2578.8,2578.7,13.06206232]
[1748246034468,4.23670186,2578.8,2578.7,13.06206232]
[1748246035285,0.35892926,2578.8,2578.7,13.06206232]
[1748246036589,5.38492298,2578.7,2577.7,0.83438198]
[1748246036787,9.588,2578.6,2577.8,0.00232584]
[1748246036945,3.87880825,2578.2,2577.6,1.5787]
[1748246037294,4.23775798,2578.1,2577.7,0.00661911]
[1748246037447,4.23775798,2578.1,2577.7,0.00232584]
[1748246037959,0.35892926,2578.0,2577.8,8.0]
[1748246038880,4.23792108,2578.0,2577.8,8.0]
[1748246039083,4.23805568,2577.9,2577.8,8.0]
[1748246039382,4.23805568,2577.9,2577.6,13.4517]
[1748246039562,4.23805568,2577.9,2577.7,0.00661911]
[1748246039761,4.23805568,2577.9,2577.7,0.00232584]
[1748246039962,0.35892926,2577.8,2577.7,0.00232584]
[1748246040157,4.23820616,2577.8,2577.7,0.00232584]
[1748246042981,4.23820616,2577.8,2577.7,13.06438816]
[1748246049814,8.11220616,2577.8,2577.7,8.00232584]
[1748246049993,8.11220616,2577.8,2577.7,13.06206232]
[1748246050578,8.11220616,2577.8,2577.7,5.06206232]
[1748246051012,3.88018004,2577.2,2577.1,0.05]
[1748246051181,3.88018004,2577.2,2577.1,8.05]
[1748246051513,4.2391093,2577.2,2577.1,8.05]
[1748246052622,4.2391093,2577.2,2577.1,13.11206232]
[1748246053325,4.2391093,2577.2,2577.1,0.05]
[1748246053918,3.88018004,2577.2,2577.1,5.11206232]
[1748246054308,3.88018004,2577.2,2577.1,0.05]
[1748246055385,0.35892926,2577.3,2577.1,1.7122]
[1748246056386,4.23899334,2577.3,2577.1,1.7122]
[1748246056728,3.88006408,2577.3,2577.1,1.7122]
[1748246057724,3.88006408,2577.3,2577.2,13.06206232]
[1748246061399,3.87994201,2577.4,2577.3,8.0]
[1748246061597,3.88002948,2577.3,2577.2,5.06206232]
[1748246062028,3.87972841,2577.5,2577.2,5.06206232]
[1748246062229,3.87987894,2577.4,2577.2,5.06206232]
[1748246063436,3.87987406,2577.5,2577.2,5.06206232]
[1748246063644,3.87987406,2577.5,2577.3,5.06206232]
[1748246063645,3.87987894,2577.4,2577.3,5.06206232]
[1748246065524,4.2388082,2577.4,2577.3,5.06206232]
[1748246069740,4.69668736,2577.4,2577.3,5.06206232]
[1748246069940,3.88002948,2577.3,2577.1,5.11206232]
[1748246070168,3.88018004,2577.2,2577.1,5.11206232]
[1748246070440,4.2391093,2577.2,2577.1,5.11206232]
[1748246074565,4.6988455,2577.2,2577.1,5.11206232]
[1748246075703,4.6988455,2577.2,2577.1,13.11206232]
[1748246076609,0.81866546,2577.2,2577.1,13.11206232]
[1748246078195,0.35892926,2577.2,2577.1,13.11206232]
[1748246078587,4.2391093,2577.2,2577.1,13.11206232]
[1748246080338,3.2391093,2577.2,2577.1,13.11206232]
[1748246082447,4.8870093,2577.2,2577.1,13.11206232]
[1748246083945,5.3467455,2577.2,2577.1,13.11206232]
[1748246085344,3.6988455,2577.2,2577.1,13.11206232]
[1748246088832,5.24442219,2577.2,2577.1,13.11206232]
[1748246090145,2.00531289,2577.2,2577.1,13.11206232]
[1748246090530,5.88549293,2577.2,2577.1,13.11206232]
[1748246094172,2.00531289,2577.2,2577.1,13.11206232]
[1748246094873,5.88549293,2577.2,2577.1,13.11206232]
[1748246103980,7.42709293,2577.2,2577.1,13.11206232]
[1748246104584,7.42709293,2577.2,2577.1,5.11206232]
[1748246104785,6.96735673,2577.2,2577.1,5.11206232]
[1748246105007,8.90515902,2577.2,2577.1,13.11206232]
[1748246106817,7.36355902,2577.2,2577.1,13.11206232]
[1748246107016,3.48337898,2577.2,2577.1,14.42326855]
[1748246107313,3.48337898,2577.2,2577.1,10.91980623]
[1748246107617,3.48337898,2577.2,2577.1,9.6086]
[1748246108419,12.86605902,2577.2,2577.1,8.05]
[1748246108797,10.92825673,2577.2,2577.1,8.05]
[1748246109542,10.92825673,2577.2,2577.1,6.75191648]
[1748246113126,11.54030538,2577.2,2577.1,6.75191648]
[1748246113843,15.73430538,2577.2,2577.1,6.75191648]
[1748246115482,7.66430538,2577.2,2577.1,6.75191648]
[1748246115627,15.73430538,2577.2,2577.1,6.75191648]
[1748246118762,15.12225673,2577.2,2577.1,6.75191648]
[1748246122384,15.67225673,2577.2,2577.1,6.75191648]
[1748246122980,17.37225673,2577.2,2577.1,6.37395075]
[1748246127979,3.88108359,2576.6,2576.5,5.06206232]
[1748246128309,3.88153553,2576.3,2576.2,13.06206232]
[1748246130416,3.8816862,2576.2,2576.1,5.11206232]
[1748246130613,11.9446862,2576.2,2576.1,5.11206232]
[1748246130821,11.9446862,2576.2,2576.1,13.11206232]
[1748246131878,13.5161862,2576.2,2576.1,13.11206232]
[1748246132099,14.0661862,2576.2,2576.1,0.05]
[1748246132618,14.52414988,2576.2,2576.1,0.05]
[1748246133977,14.67680444,2576.2,2576.1,0.05]
[1748246134433,4.49230444,2576.2,2576.1,0.05]
[1748246134584,12.55630444,2576.2,2576.1,0.05]
[1748246134784,12.55630444,2576.2,2576.1,8.05]
[1748246135431,11.9456862,2576.2,2576.1,8.05]
[1748246135806,15.42132608,2576.2,2576.1,8.05]
[1748246138091,11.9456862,2576.2,2576.1,8.05]
[1748246140834,8.0686862,2576.2,2576.1,9.6348]
[1748246141007,11.9466862,2576.2,2576.1,9.6348]
[1748246141933,3.88154168,2576.3,2576.2,8.0]
[1748246141934,8.06854168,2576.3,2576.2,8.0]
[1748246142112,3.88154168,2576.3,2576.1,1.6348]
[1748246142432,7.75954168,2576.3,2576.1,1.6348]
[1748246142633,3.88154168,2576.3,2576.1,1.6348]
[1748246144162,3.8816862,2576.2,2576.1,1.6348]
[1748246148245,3.8816862,2576.2,2576.1,14.69686232]
[1748246148644,5.3816862,2576.2,2576.1,14.69686232]
[1748246148952,5.3816862,2576.2,2576.1,13.11206232]
[1748246149675,1.5,2576.2,2576.1,14.72906232]
[1748246151781,1.5,2576.2,2576.1,16.20196855]
[1748246151936,0.45674136,2576.5,2576.1,16.20196855]
[1748246151937,0.45674136,2576.5,2576.4,1.617]
[1748246152250,0.45674136,2576.5,2576.4,14.67906232]
[1748246152768,0.45674136,2576.5,2576.4,18.56044719]
[1748246153074,0.45674136,2576.5,2576.4,14.67906232]
[1748246153270,0.45674136,2576.5,2576.4,16.92291758]
[1748246153464,1.93006319,2576.7,2576.5,8.0]
[1748246153661,1.93006319,2576.7,2576.5,13.06206232]
[1748246153968,1.93006319,2576.7,2576.6,13.06206232]
[1748246154180,3.88090208,2576.8,2576.4,3.86085526]
[1748246154181,5.81096527,2576.8,2576.4,1.617]
[1748246154379,3.88153553,2576.3,2576.2,6.57976232]
[1748246154564,3.88153553,2576.3,2576.2,14.57976232]
[1748246155483,3.88153553,2576.3,2576.2,13.06206232]
[1748246157880,3.88153553,2576.3,2576.2,8.0]
[1748246160880,3.88153553,2576.3,2576.2,13.06206232]
[1748246161194,7.75853553,2576.3,2576.2,13.06206232]
[1748246162303,3.88153553,2576.3,2576.2,13.06206232]
[1748246162520,11.93753553,2576.3,2576.2,13.06206232]
[1748246162823,7.75853553,2576.3,2576.2,13.06206232]
[1748246162967,8.51713827,2576.4,2576.3,8.0]
[1748246163172,3.88153553,2576.3,2576.2,5.06206232]
[1748246163368,4.33819412,2576.4,2576.3,8.0]
[1748246163566,8.21519412,2576.4,2576.3,8.0]
[1748246164059,7.75845276,2576.4,2576.3,8.0]
[1748246164601,3.88145276,2576.4,2576.3,8.0]
[1748246164905,7.75838487,2576.4,2576.3,8.0]
[1748246165284,9.68844806,2576.4,2576.3,8.0]
[1748246165902,9.68844806,2576.4,2576.3,6.70153047]
[1748246166400,5.81144806,2576.4,2576.3,6.70153047]
[1748246166601,1.93006319,2576.4,2576.3,6.70153047]
[1748246166896,1.93006319,2576.4,2576.3,11.76359279]
[1748246167807,1.93006319,2576.4,2576.3,13.38519279]
[1748246168001,3.88127493,2576.5,2576.3,13.38519279]
[1748246170992,3.88138487,2576.4,2576.3,13.38519279]
[1748246172079,3.88128956,2576.5,2576.3,13.38519279]
[1748246172592,3.88128956,2576.5,2576.4,13.06206232]
[1748246173009,7.75828956,2576.5,2576.4,13.06206232]
[1748246173177,7.75828956,2576.5,2576.4,5.06206232]
[1748246173609,8.21503092,2576.5,2576.4,5.06206232]
[1748246174478,7.75828956,2576.5,2576.4,5.06206232]
[1748246177036,7.75828956,2576.5,2576.4,13.06206232]
[1748246180245,11.23060675,2576.5,2576.4,13.06206232]
[1748246182643,7.35360675,2576.5,2576.4,13.06206232]
[1748246182816,11.23060675,2576.5,2576.4,13.06206232]
[1748246183522,9.30054356,2576.5,2576.4,13.06206232]
[1748246185665,5.42354356,2576.5,2576.4,13.06206232]
[1748246185839,9.30054356,2576.5,2576.4,13.06206232]
[1748246186442,5.42354356,2576.5,2576.4,14.59786232]
[1748246187177,5.42354356,2576.5,2576.4,13.29948201]
[1748246188475,1.542254,2576.5,2576.4,13.29948201]
[1748246188631,0.45879059,2576.7,2576.6,1.5229]
[1748246188836,3.88067414,2576.9,2576.6,1.5229]
[1748246189069,3.88067414,2576.9,2576.7,8.0]
[1748246189270,3.88078236,2576.8,2576.7,8.0]
[1748246189462,3.88069629,2576.9,2576.7,8.0]
[1748246189773,3.88067882,2576.9,2576.7,8.0]
[1748246189974,3.88067882,2576.9,2576.7,9.33999]
[1748246191743,3.88050717,2577.0,2576.7,9.33999]
[1748246192276,4.33912723,2577.1,2576.9,8.0]
[1748246192475,3.88033664,2577.1,2576.9,8.0]
[1748246192674,3.88033664,2577.1,2577.0,11.76368201]
[1748246193033,3.88025116,2577.2,2577.1,8.0]
[1748246193234,3.88025116,2577.2,2577.1,11.76368201]
[1748246193651,5.81322231,2577.2,2577.1,11.76368201]
[1748246197541,3.88025116,2577.2,2577.1,11.76368201]
[1748246198780,3.88010151,2577.3,2576.8,13.4546]
[1748246198987,3.88018736,2577.2,2577.0,1.6162]
[1748246199157,8.048,2577.4,2577.0,9.6162]
[1748246199385,11.92795103,2577.4,2577.0,1.6162]
[1748246199591,3.88003527,2577.3,2577.0,1.6162]
[1748246200114,3.88019661,2577.2,2577.0,1.6162]
[1748246200320,3.8803306,2577.1,2577.0,11.1133659]
[1748246200471,3.8803306,2577.1,2577.0,1.6162]
[1748246200676,4.172,2577.4,2577.0,1.6162]
[1748246200888,3.88011517,2577.3,2577.0,1.6162]
[1748246201916,8.05188826,2577.4,2577.0,1.6162]
[1748246202129,3.8803306,2577.1,2577.0,1.6162]
[1748246202297,3.88070743,2576.9,2576.8,8.0]
[1748246202492,3.88070743,2576.9,2576.7,1.5134]
[1748246202811,3.88055029,2577.0,2576.8,8.0]
[1748246203424,3.88036959,2577.1,2576.8,8.0]
[1748246204000,3.88043342,2577.1,2576.8,8.0]
[1748246205925,3.88049087,2577.0,2576.8,8.0]
[1748246206931,8.047,2577.4,2576.9,1.5381]
[1748246207135,4.171,2577.4,2576.9,1.5381]
[1748246207337,4.171,2577.4,2577.0,0.46953395]
[1748246207499,8.05096619,2577.4,2577.0,0.46953395]
[1748246207700,8.05096619,2577.4,2577.0,8.46953395]
[1748246209000,8.05096339,2577.4,2577.0,8.46953395]
[1748246209199,3.88008133,2577.3,2577.0,8.46953395]
[1748246213856,3.88008133,2577.3,2577.2,8.0]
[1748246217820,8.05095383,2577.4,2577.2,8.0]
[1748246219154,3.88002948,2577.3,2577.2,8.0]
[1748246219844,3.88002948,2577.3,2577.2,11.76368201]
[1748246220935,4.171,2577.4,2577.2,11.76368201]
[1748246221260,3.88002948,2577.3,2577.2,11.76368201]
[1748246222355,4.171,2577.4,2577.2,11.76368201]
[1748246222564,8.05095077,2577.4,2577.2,11.76368201]
[1748246222724,3.88002948,2577.3,2577.2,11.76368201]
[1748246226262,4.33857168,2577.5,2577.2,11.76368201]
[1748246226263,0.45879059,2577.5,2577.2,12.94005021]
[1748246226561,2.54358939,2578.0,2577.6,3.8795779]
[1748246226764,2.54358939,2578.0,2577.9,11.87912642]
[1748246226929,2.54358939,2578.0,2577.9,8.0]
[1748246227129,2.54358939,2578.0,2577.9,10.50596634]
[1748246227834,1.93297115,2578.0,2577.9,10.50596634]
[1748246231394,4.163,2578.2,2578.0,8.0]
[1748246231683,4.163,2578.2,2578.1,11.76368201]
[1748246232677,8.04167504,2578.2,2578.1,11.76368201]
[1748246233190,4.163,2578.2,2578.1,11.76368201]
[1748246234471,8.04167504,2578.2,2578.1,11.76368201]
[1748246235040,4.163,2578.2,2578.1,11.76368201]
[1748246235245,4.163,2578.2,2578.1,13.19064685]
[1748246236544,8.04167504,2578.2,2578.1,11.76368201]
[1748246237096,1.5048,2578.1,2577.2,1.5636]
[1748246237296,1.5048,2577.6,2576.6,1.5636]
[1748246237463,9.5418,2577.6,2576.8,8.0]
[1748246237664,3.88003297,2577.3,2577.0,8.0]
[1748246237894,3.87989289,2577.4,2577.0,8.0]
[1748246238103,3.87973809,2577.5,2577.0,8.0]
[1748246238413,3.87989055,2577.4,2577.1,1.5389]
[1748246238592,3.87986973,2577.5,2577.2,8.0]
[1748246238761,3.88002948,2577.3,2577.2,8.0]
[1748246239264,3.88018004,2577.2,2577.1,9.34139]
[1748246239469,3.88018004,2577.2,2577.1,8.0]
[1748246240276,3.88033511,2577.1,2577.0,11.875]
[1748246240875,3.88048117,2577.0,2576.9,1.5389]
[1748246241184,3.88063176,2576.9,2576.8,11.76368201]
[1748246241385,3.88063176,2576.9,2576.8,11.875]
[1748246241567,3.88114192,2576.6,2576.3,1.5752]
[1748246241766,3.88114192,2576.6,2576.4,3.875]
[1748246242006,3.88114192,2576.6,2576.5,3.875]
[1748246242301,3.88114192,2576.6,2576.5,11.875]
[1748246242681,3.88090482,2576.8,2576.5,3.875]
[1748246243305,3.88096309,2576.7,2576.5,3.875]
[1748246243805,3.881084,2576.6,2576.4,8.54502]
[1748246243969,3.881084,2576.6,2576.5,3.875]
[1748246244398,3.881084,2576.6,2576.5,11.875]
[1748246244617,3.881084,2576.6,2576.5,8.0]
[1748246244766,3.881084,2576.6,2576.5,11.875]
[1748246245405,3.880947,2576.7,2576.5,3.875]
[1748246247302,3.8808081,2576.8,2576.5,3.875]
[1748246247507,3.88093128,2576.8,2576.5,3.875]
[1748246247709,3.88082342,2576.8,2576.5,3.875]
[1748246247863,3.88067855,2576.9,2576.5,5.22002]
[1748246248387,3.88087542,2576.8,2576.5,5.22102]
[1748246249409,3.88087542,2576.8,2576.5,8.98470201]
[1748246249608,3.88096574,2576.7,2576.6,8.0]
[1748246249908,3.8808071,2576.8,2576.6,8.0]
[1748246250607,3.88111275,2576.6,2576.5,11.876]
[1748246250996,3.88099344,2576.7,2576.6,8.0]
[1748246251812,3.88083047,2576.8,2576.6,8.0]
[1748246252201,3.88093297,2576.7,2576.6,8.0]
[1748246252908,3.8803306,2577.1,2576.6,8.0]
[1748246253111,3.8803306,2577.1,2576.6,10.7521037]
[1748246253112,3.88066395,2576.9,2576.6,10.7521037]
[1748246253315,3.88054204,2577.0,2576.6,10.7521037]
[1748246253518,3.88071774,2576.9,2576.6,10.7521037]
[1748246254075,5.430138,2577.2,2576.6,14.633066]
[1748246254376,3.88003348,2577.3,2576.8,11.88076339]
[1748246254678,3.88003348,2577.3,2577.0,8.0]
[1748246254878,3.88020239,2577.2,2577.0,8.0]
[1748246255270,3.88020239,2577.2,2577.0,7.99539263]
[1748246256811,3.8803306,2577.1,2577.0,7.99539263]
[1748246257314,3.88066433,2576.9,2576.8,8.0]
[1748246261010,3.88066433,2576.9,2576.8,11.76368201]
[1748246264414,3.88063176,2576.9,2576.8,11.76368201]
[1748246268628,5.45793176,2576.9,2576.8,11.76368201]
[1748246269976,3.88108359,2576.6,2576.5,3.76368201]
[1748246278878,3.88099579,2576.7,2576.5,2.4653916]
[1748246279178,8.03280902,2576.8,2576.5,2.4653916]
[1748246280486,3.88108359,2576.6,2576.5,2.4653916]
[1748246284574,5.51258359,2576.6,2576.5,2.4653916]
[1748246287401,3.88108359,2576.6,2576.5,2.4653916]
[1748246291292,3.88108359,2576.6,2576.5,10.4653916]
[1748246296715,4.33983139,2576.8,2576.5,10.4653916]
[1748246296892,0.45896405,2576.8,2576.7,9.5609]
[1748246297075,0.45896405,2576.8,2576.7,1.5609]
[1748246297876,5.81363029,2576.9,2576.7,1.5609]
[1748246298674,1.93297115,2576.9,2576.7,1.5609]
[1748246298885,1.93297115,2576.9,2576.8,10.4653916]
[1748246299085,5.81360291,2576.9,2576.8,2.4653916]
[1748246299413,1.93297115,2576.9,2576.8,2.4653916]
[1748246299637,1.93297115,2576.9,2576.8,2.46078365]
[1748246299846,5.81360291,2576.9,2576.8,2.46078365]
[1748246300648,1.93297115,2576.9,2576.8,2.46078365]
[1748246302439,3.88049565,2577.0,2576.8,2.46078365]
[1748246304856,3.8803958,2577.1,2576.8,2.46078365]
[1748246306757,3.88051873,2577.0,2576.8,3.66295201]
[1748246307145,3.88039899,2577.1,2576.8,3.66295201]
[1748246307346,3.88039899,2577.1,2576.8,2.46078365]
[1748246308159,3.88039899,2577.1,2576.9,2.46078365]
[1748246309869,3.88025404,2577.2,2576.9,2.46078365]
[1748246310350,7.9237352,2577.5,2576.6,3.88099931]
[1748246310351,2.3919352,2577.5,2577.0,15.83738365]
[1748246310551,2.3919352,2577.5,2577.4,1.5006]
[1748246310729,2.3919352,2577.5,2577.4,17.29527282]
[1748246310928,0.45980182,2578.0,2577.6,8.0]
[1748246311162,0.45980182,2578.0,2577.8,1.5664]
[1748246311533,0.45980182,2578.0,2577.8,9.5664]
[1748246311938,0.45980182,2578.0,2577.8,1.5664]
[1748246312152,4.3387841,2578.0,2577.8,1.5664]
[1748246312357,0.45980182,2578.0,2577.8,1.5664]
[1748246312782,3.87889448,2578.1,2577.8,1.5664]
[1748246313490,3.87889448,2578.1,2577.8,9.5664]
[1748246313983,3.87871657,2578.2,2577.8,9.5664]
[1748246314163,3.87871657,2578.2,2577.8,5.4424]
[1748246314488,8.02456794,2578.3,2577.8,5.4424]
[1748246314695,3.87877982,2578.2,2577.9,8.0]
[1748246314863,8.02453492,2578.3,2577.9,8.0]
[1748246315063,3.87840309,2578.4,2577.9,11.87912086]
[1748246315583,3.87852673,2578.3,2577.9,8.0]
[1748246315762,3.87852673,2578.3,2577.9,9.40623733]
[1748246316885,3.87840628,2578.4,2577.9,9.40623733]
[1748246317078,3.87840628,2578.4,2578.0,0.06884845]
[1748246318793,3.87856808,2578.3,2578.0,0.06884845]
[1748246318993,3.87842981,2578.4,2578.0,0.06884845]
[1748246319203,8.02308509,2578.6,2578.0,0.06884845]
[1748246319204,3.87853967,2578.3,2578.0,0.06884845]
[1748246319352,3.87839272,2578.4,2578.0,0.06884845]
[1748246320010,0.05,2578.9,2578.8,8.0]
[1748246320314,0.05,2578.9,2578.8,9.62904845]
[1748246323312,0.05,2578.9,2578.8,8.06884845]
[1748246326112,0.05,2578.9,2578.8,11.94662105]
[1748246326271,0.05,2578.9,2578.8,14.07590432]
[1748246326611,0.05,2578.9,2578.8,10.19813172]
[1748246326807,0.05,2578.9,2578.8,14.07590432]
[1748246327010,0.05,2578.9,2578.8,10.19813172]
[1748246330012,0.05,2578.9,2578.8,14.07213172]
[1748246330810,0.05,2578.9,2578.8,17.94990432]
[1748246331119,8.01929519,2579.8,2579.0,1.5913]
[1748246331313,3.87701941,2579.4,2579.1,0.06884845]
[1748246331506,3.87701941,2579.4,2579.1,1.03486329]
[1748246331821,3.87707901,2579.3,2579.1,1.03486329]
[1748246332313,3.87701941,2579.4,2579.1,1.03486329]
[1748246332491,3.87702089,2579.3,2579.1,1.03486329]
[1748246332817,3.87717121,2579.2,2579.1,0.06884845]
[1748246336625,5.51136804,2579.1,2578.7,0.06884845]
[1748246336781,5.5117726,2578.8,2578.7,0.06884845]
[1748246337211,3.87867504,2578.2,2578.1,0.06884845]
[1748246349254,3.8792769,2577.8,2577.7,0.06884845]
[1748246349547,3.87918735,2577.9,2577.7,0.06884845]
[1748246350659,3.87898509,2578.0,2577.7,0.06884845]
[1748246350831,3.87898494,2578.0,2577.7,0.06884845]
[1748246352337,3.87898494,2578.0,2577.8,0.06884845]
[1748246352536,4.42768134,2578.9,2577.4,17.38070653]
[1748246352537,4.19566251,2579.9,2578.0,1.6103]
[1748246352763,3.87705725,2579.3,2578.3,5.4888246]
[1748246352972,3.87727209,2579.2,2578.6,8.0]
[1748246353127,3.87702987,2579.3,2578.8,9.6103]
[1748246353329,3.87727543,2579.2,2578.8,10.29707672]
[1748246353677,3.87737624,2579.1,2578.8,10.29707672]
[1748246353826,3.87747889,2579.0,2578.8,10.29707672]
[1748246354462,3.87734164,2579.1,2578.8,10.29707672]
[1748246354637,3.87734164,2579.1,2578.8,9.6103]
[1748246355431,3.87762224,2578.9,2578.6,8.0]
[1748246355631,3.87774748,2578.9,2578.6,8.0]
[1748246356679,3.87702089,2579.3,2578.6,8.0]
[1748246356680,3.87779966,2578.8,2578.6,8.0]
[1748246356836,3.87765733,2578.9,2578.6,8.0]
[1748246357252,1.6148,2579.4,2578.6,10.03546672]
[1748246357469,3.87719794,2579.2,2578.7,0.68677672]
[1748246358335,3.87734858,2579.1,2578.7,0.68677672]
[1748246358532,3.87750231,2579.0,2578.7,0.68677672]
[1748246358873,3.87742121,2579.1,2578.7,0.68677672]
[1748246359039,3.87742121,2579.1,2578.8,8.0]
[1748246361442,3.87721655,2579.2,2578.8,8.0]
[1748246362544,3.87721655,2579.2,2578.7,9.94005892]
[1748246362761,3.87735963,2579.1,2578.7,9.94005892]
[1748246362978,3.87735963,2579.1,2578.7,9.93544915]
[1748246363141,3.87735963,2579.1,2578.8,1.76874679]
[1748246363676,3.8772361,2579.2,2578.8,1.76874679]
[1748246363838,3.87732613,2579.1,2578.8,1.76874679]
[1748246364442,3.87765175,2578.9,2578.7,8.0]
[1748246364641,3.87765175,2578.9,2578.5,1.6129]
[1748246364880,3.87765175,2578.9,2578.7,8.0]
[1748246366365,3.87754343,2579.0,2578.7,8.0]
[1748246367080,3.87723481,2579.2,2578.8,1.5167]
[1748246367300,3.87735403,2579.1,2578.8,2.20347672]
[1748246367646,3.8775343,2579.0,2578.8,2.20347672]
[1748246367980,3.8775343,2579.0,2578.9,8.0]
[1748246368581,3.87787811,2578.8,2578.6,9.5167]
[1748246368749,3.87792298,2578.7,2578.6,9.5167]
[1748246368944,3.87792298,2578.7,2578.6,8.0]
[1748246369283,3.87782224,2578.8,2578.6,8.0]
[1748246369453,3.87788817,2578.8,2578.4,2.19767672]
[1748246369660,3.87795827,2578.7,2578.5,8.0]
[1748246370889,4.23756069,2578.9,2578.5,8.0]
[1748246371050,1.5951,2579.0,2578.5,8.0]
[1748246371051,0.35992442,2578.8,2578.6,1.34091584]
[1748246371978,3.87764358,2578.9,2578.6,1.34091584]
[1748246372284,3.87764358,2578.9,2578.6,0.68677672]
[1748246372687,4.2374206,2579.0,2578.6,0.68677672]
[1748246372844,3.87789264,2578.8,2578.5,8.0]
[1748246373050,3.87789264,2578.8,2578.7,0.06884845]
[1748246374375,4.23781706,2578.8,2578.7,0.06884845]
[1748246374771,0.35992442,2578.8,2578.7,0.06884845]
[1748246374998,4.23769702,2578.8,2578.7,0.06884845]
[1748246381838,0.35992442,2578.8,2578.7,0.75562517]
[1748246383216,0.35992442,2578.8,2578.7,0.06884845]
[1748246383848,4.23769702,2578.8,2578.7,0.06884845]
[1748246384945,0.35992442,2578.8,2578.7,0.06884845]
[1748246385323,4.23769702,2578.8,2578.7,0.06884845]
[1748246386749,0.35992442,2578.8,2578.7,9.0325833]
[1748246387431,4.23769702,2578.8,2578.7,8.06884845]
[1748246388744,4.23769702,2578.8,2578.7,0.06884845]
[1748246390654,0.35992442,2578.8,2578.7,0.06884845]
[1748246391472,0.35992442,2578.8,2578.7,0.75562517]
[1748246391835,0.35992442,2578.8,2578.7,2.26912517]
[1748246392031,0.35992442,2578.8,2578.7,3.29603769]
[1748246393097,4.23769702,2578.8,2578.7,0.75562517]